bitfinex/quotes_SOLUSD_20250130
["timestamp","ask_amount","ask_price","bid_price","bid_amount"]
[1738261980253,0.5,240.63,240.62,245.14025358]
[1738261980656,0.063,240.64,240.63,13.41184853]
[1738261980849,0.063,240.64,240.63,13.92567183]
[1738261981247,0.063,240.64,240.63,233.22567183]
[1738261981452,0.063,240.64,240.63,232.71184853]
[1738261981673,0.063,240.64,240.63,240.84582853]
[1738261981870,0.063,240.66,240.65,33.91380853]
[1738261982065,0.063,240.66,240.65,266.15558596]
[1738261982271,0.063,240.66,240.65,265.64221358]
[1738261983150,0.5,240.71,240.66,0.25098]
[1738261983359,0.5,240.71,240.7,25.84025358]
[1738261984582,0.5,240.71,240.7,12.42840505]
[1738261984755,0.5,240.69,240.68,12.42840505]
[1738261985078,0.5,240.69,240.68,82.3]
[1738261986068,0.5,240.65,240.64,12.42840505]
[1738261986270,0.5,240.61,240.6,231.72840505]
[1738261987284,0.5,240.66,240.64,13.41184853]
[1738261987461,0.5,240.66,240.65,26.35395809]
[1738261987873,0.5,240.69,240.68,20.0]
[1738261988079,0.5,240.69,240.68,32.42840505]
[1738261989065,0.5,240.69,240.68,20.0]
[1738261989386,0.5,240.67,240.64,12.42840505]
[1738261989682,0.5,240.65,240.64,12.42840505]
[1738261990286,0.84200797,240.73,240.64,12.42840505]
[1738261990287,0.5,240.67,240.66,20.0]
[1738261990584,0.5,240.67,240.66,32.94215926]
[1738261991880,0.5,240.67,240.66,20.0]
[1738261993788,0.5,240.67,240.66,32.42840505]
[1738261994570,0.5,240.65,240.64,94.72840505]
[1738261995668,0.5,240.65,240.64,231.72840505]
[1738261998496,0.5,240.66,240.64,231.72840505]
[1738261998682,0.063,240.67,240.66,20.0]
[1738261998990,0.063,240.67,240.66,32.42840505]
[1738261999395,0.063,240.67,240.64,231.72840505]
[1738261999694,0.5,240.65,240.64,82.3]
[1738262000500,0.5,240.65,240.64,82.81419105]
[1738262000685,0.5,240.65,240.64,94.72840505]
[1738262001073,0.5,240.65,240.64,82.3]
[1738262001275,0.5,240.65,240.63,0.03]
[1738262001698,12.92840505,240.65,240.63,0.03]
[1738262002000,0.5,240.65,240.63,0.03]
[1738262004077,0.5,240.65,240.64,32.42840505]
[1738262004482,0.5,240.65,240.64,20.0]
[1738262004678,0.5,240.65,240.63,219.33]
[1738262005885,0.5,240.65,240.64,12.9425824]
[1738262006489,0.5,240.65,240.64,245.65443093]
[1738262006781,0.063,240.67,240.66,20.0]
[1738262006981,0.063,240.67,240.66,32.94219217]
[1738262008605,0.063,240.67,240.66,12.94219217]
[1738262008809,0.063,240.67,240.66,12.42840505]
[1738262010508,0.063,240.67,240.66,231.72840505]
[1738262014013,0.063,240.67,240.66,219.3]
[1738262014205,0.063,240.67,240.66,231.72840505]
[1738262016423,0.063,240.67,240.66,82.3]
[1738262017735,0.5,240.65,240.64,12.42840505]
[1738262017937,0.5,240.65,240.64,12.94257972]
[1738262020621,0.063,240.67,240.66,20.0]
[1738262020926,0.063,240.67,240.66,46.35397894]
[1738262021239,0.063,240.67,240.66,265.65397894]
[1738262021410,0.063,240.67,240.66,265.14025358]
[1738262022223,0.063,240.67,240.66,265.64221358]
[1738262022428,0.063,240.73,240.7,20.0]
[1738262022615,0.063,240.73,240.72,12.42840505]
[1738262022810,0.063,240.73,240.72,25.84025358]
[1738262023019,0.063,240.73,240.72,38.26865863]
[1738262023237,0.063,240.73,240.72,25.84025358]
[1738262025041,0.063,240.73,240.72,38.26865863]
[1738262025423,0.063,240.73,240.72,25.84025358]
[1738262025959,0.063,240.73,240.72,231.72840505]
[1738262026159,0.063,240.73,240.72,257.56865863]
[1738262027225,0.063,240.76,240.75,20.0]
[1738262027549,0.063,240.76,240.75,265.6531759]
[1738262027727,0.063,240.76,240.75,265.14025358]
[1738262030955,0.063,240.76,240.75,251.72840505]
[1738262032153,0.563,240.76,240.75,251.72840505]
[1738262032856,0.063,240.76,240.75,265.14025358]
[1738262034432,0.563,240.76,240.75,265.14025358]
[1738262034633,0.563,240.76,240.75,251.72840505]
[1738262035931,0.563,240.76,240.75,219.3]
[1738262036124,0.563,240.76,240.75,231.72840505]
[1738262041731,0.563,240.76,240.75,219.3]
[1738262044564,0.563,240.76,240.75,82.3]
[1738262044760,0.5,240.73,240.72,137.03]
[1738262045337,0.5,240.73,240.72,0.03]
[1738262046548,18.08240505,240.73,240.72,0.03]
[1738262046868,14.7074338,240.73,240.72,0.03]
[1738262047574,19.8614338,240.73,240.72,0.03]
[1738262048170,18.8614338,240.73,240.72,0.03]
[1738262048469,17.8614338,240.73,240.72,0.03]
[1738262050367,1.27902875,240.73,240.72,0.03]
[1738262050541,0.5,240.73,240.72,0.03]
[1738262050741,1.27896361,240.73,240.72,0.03]
[1738262051741,5.43296361,240.73,240.72,0.03]
[1738262052762,6.43296361,240.73,240.72,0.03]
[1738262053644,18.86136866,240.73,240.72,0.03]
[1738262053963,19.84481214,240.73,240.72,0.03]
[1738262054172,32.27321719,240.73,240.72,0.03]
[1738262054672,0.5,240.64,240.63,0.03]
[1738262055080,1.2793734,240.64,240.63,0.03]
[1738262056968,5.4348734,240.64,240.63,0.03]
[1738262057586,5.5603634,240.64,240.63,0.03]
[1738262058173,0.5,240.64,240.63,0.03]
[1738262058845,4.78099,240.64,240.63,0.03]
[1738262059864,6.78099,240.64,240.63,0.03]
[1738262060272,5.78099,240.64,240.63,0.03]
[1738262060469,4.78099,240.64,240.63,0.03]
[1738262061276,6.78099,240.64,240.63,0.03]
[1738262061476,0.5,240.54,240.53,82.3]
[1738262061973,0.5,240.54,240.5,137.0]
[1738262062156,0.5,240.49,240.46,12.42840505]
[1738262062355,0.5,240.49,240.48,12.42840505]
[1738262062880,0.5,240.49,240.47,0.03]
[1738262063370,0.5,240.49,240.48,25.84025358]
[1738262063672,0.5,240.52,240.51,20.0]
[1738262063871,0.5,240.52,240.51,32.94309629]
[1738262064171,15.02440505,240.65,240.51,265.65494482]
[1738262064172,0.5,240.57,240.51,265.65494482]
[1738262064382,0.5,240.57,240.56,12.42840505]
[1738262064552,0.5,240.57,240.56,137.0]
[1738262064876,0.5,240.57,240.56,149.42840505]
[1738262065057,0.5,240.57,240.56,162.84025358]
[1738262065252,0.5,240.57,240.56,149.42840505]
[1738262066687,0.5,240.57,240.56,156.91504605]
[1738262067277,0.5,240.57,240.56,137.0]
[1738262068985,0.5,240.55,240.51,137.03]
[1738262069171,19.91504605,240.58,240.51,137.03]
[1738262069172,0.5,240.52,240.51,137.03]
[1738262069482,0.5,240.52,240.51,0.03]
[1738262077571,0.5,240.52,240.51,13.44184853]
[1738262078597,0.5,240.54,240.53,20.0]
[1738262078797,0.5,240.54,240.53,53.84145698]
[1738262079099,0.5,240.55,240.54,13.41184853]
[1738262079271,0.5,240.55,240.54,33.32689458]
[1738262079895,0.5,240.55,240.54,19.91504605]
[1738262081675,0.5,240.55,240.54,33.32689458]
[1738262081871,0.5,240.57,240.56,20.0]
[1738262082070,0.5,240.57,240.56,259.72940042]
[1738262082285,0.5,240.57,240.56,259.21504605]
[1738262086601,0.5,240.57,240.56,272.62689458]
[1738262087001,0.5,240.59,240.57,13.41184853]
[1738262087189,0.5,240.59,240.58,20.42921486]
[1738262087388,0.5,240.59,240.58,33.84106339]
[1738262088692,0.5,240.59,240.58,26.36638145]
[1738262088903,0.5,240.61,240.59,13.41184853]
[1738262089106,0.5,240.61,240.6,26.36622393]
[1738262090486,0.563,240.63,240.62,33.41184853]
[1738262090682,0.563,240.63,240.62,265.66607157]
[1738262090915,0.563,240.63,240.62,265.15221264]
[1738262092094,0.063,240.63,240.62,265.15221264]
[1738262092910,0.563,240.63,240.62,265.15221264]
[1738262094987,0.563,240.63,240.62,231.74036411]
[1738262095188,0.563,240.63,240.62,219.3]
[1738262096793,0.563,240.63,240.6,137.0]
[1738262096993,0.5,240.61,240.6,137.0]
[1738262097410,0.5,240.61,240.58,149.44036411]
[1738262097597,0.5,240.59,240.58,149.44036411]
[1738262100516,0.5,240.59,240.58,137.0]
[1738262100819,0.5,240.59,240.58,149.44036411]
[1738262100992,0.5,240.59,240.58,162.85221264]
[1738262101199,0.5,240.59,240.58,149.44036411]
[1738262101598,0.5,240.59,240.58,137.0]
[1738262102519,17.09686411,240.59,240.57,82.3]
[1738262102695,0.5,240.52,240.51,137.03]
[1738262102896,0.5,240.52,240.51,231.77036411]
[1738262104390,0.5,240.52,240.51,82.33]
[1738262104791,0.5,240.52,240.51,94.77036411]
[1738262105695,0.5,240.52,240.51,231.77036411]
[1738262106804,0.5,240.52,240.51,219.33]
[1738262107004,0.5,240.52,240.51,82.33]
[1738262107813,0.5,240.52,240.51,94.77036411]
[1738262109516,0.5,240.52,240.51,231.77036411]
[1738262109826,0.5,240.52,240.51,245.18221264]
[1738262111405,0.5,240.52,240.51,231.77036411]
[1738262113244,0.5,240.52,240.51,245.18221264]
[1738262113402,0.5,240.54,240.51,245.18221264]
[1738262113607,0.5,240.54,240.53,32.44036411]
[1738262114727,0.5,240.54,240.53,251.74036411]
[1738262117641,0.5,240.54,240.53,265.15221264]
[1738262117935,0.5,240.58,240.54,13.41184853]
[1738262118235,0.5,240.58,240.57,25.85221264]
[1738262119115,0.5,240.58,240.55,0.51425953]
[1738262119339,0.5,240.55,240.54,231.74036411]
[1738262120111,0.5,240.58,240.57,20.0]
[1738262120335,0.5,240.58,240.57,32.44036411]
[1738262120833,0.5,240.56,240.54,219.3]
[1738262122308,0.5,240.56,240.51,82.33]
[1738262122309,0.5,240.52,240.51,82.33]
[1738262122513,0.5,240.52,240.51,0.03]
[1738262129349,1.27966241,240.52,240.51,0.03]
[1738262129542,5.43726241,240.52,240.51,0.03]
[1738262130230,6.43726241,240.52,240.51,0.03]
[1738262130727,19.84911094,240.52,240.51,0.03]
[1738262131111,6.43726241,240.52,240.51,0.03]
[1738262131317,1.27966241,240.52,240.51,0.03]
[1738262132938,6.43726241,240.52,240.51,0.03]
[1738262134245,5.56275241,240.52,240.51,0.03]
[1738262136239,1.40515241,240.52,240.51,0.03]
[1738262136442,1.27966241,240.52,240.51,0.03]
[1738262136627,0.5,240.52,240.51,0.03]
[1738262145766,4.6576,240.52,240.51,0.03]
[1738262146632,0.5,240.52,240.51,0.03]
[1738262147061,4.6576,240.52,240.51,0.03]
[1738262150058,5.6576,240.52,240.51,0.03]
[1738262150537,20.06944853,240.52,240.51,0.03]
[1738262150742,12.94036411,240.46,240.45,0.03]
[1738262150940,13.72025954,240.46,240.45,0.03]
[1738262151138,35.22640807,240.46,240.45,0.03]
[1738262151362,1.5,240.42,240.41,0.03]
[1738262151649,28.13237022,240.42,240.41,0.03]
[1738262152360,32.29167022,240.42,240.41,0.03]
[1738262154152,6.78619,240.34,240.33,0.03]
[1738262154357,27.38535411,240.34,240.33,0.03]
[1738262154656,28.16583692,240.34,240.33,0.03]
[1738262154864,41.57768545,240.34,240.33,0.03]
[1738262158580,23.00513692,240.34,240.33,0.03]
[1738262158746,13.84633692,240.34,240.33,0.03]
[1738262159077,13.97182692,240.34,240.33,0.03]
[1738262159367,14.97182692,240.34,240.33,0.03]
[1738262159950,13.97182692,240.34,240.33,0.03]
[1738262160580,13.97182692,240.34,240.33,0.03]
[1738262160882,29.38367545,240.34,240.33,0.03]
[1738262162456,2.75098,240.32,240.31,0.03]
[1738262162647,29.3837188,240.32,240.31,0.03]
[1738262163764,29.3837188,240.32,240.31,0.0001]
[1738262164974,2.62549,240.27,240.26,0.03]
[1738262165173,29.25838417,240.27,240.26,0.03]
[1738262166373,33.42028417,240.27,240.26,0.03]
[1738262167584,19.00843564,240.27,240.26,0.03]
[1738262168490,18.00843564,240.27,240.26,0.03]
[1738262170979,17.88294564,240.27,240.26,0.03]
[1738262171195,18.00843564,240.27,240.26,0.03]
[1738262177680,0.5,240.27,240.26,137.03]
[1738262181767,0.5,240.27,240.26,0.03]
[1738262181973,12.94036411,240.27,240.26,0.03]
[1738262183063,0.5,240.27,240.26,0.03]
[1738262183679,0.5,240.27,240.26,0.54654977]
[1738262183989,0.5,240.27,240.26,0.03]
[1738262184191,0.5,240.27,240.26,0.54655007]
[1738262184777,0.5,240.27,240.26,0.54653592]
[1738262187263,0.5,240.27,240.26,0.03]
[1738262187590,0.5,240.27,240.26,219.84654253]
[1738262187885,0.5,240.27,240.26,219.33]
[1738262190377,0.5,240.3,240.29,20.0]
[1738262190587,0.063,240.31,240.29,232.25644708]
[1738262190801,0.063,240.31,240.29,231.74036411]
[1738262190996,0.063,240.31,240.3,13.92772795]
[1738262191704,0.063,240.31,240.3,233.22772795]
[1738262191904,0.063,240.31,240.3,232.71184853]
[1738262193700,0.063,240.31,240.3,233.96282853]
[1738262194002,0.063,240.34,240.33,45.85221264]
[1738262194186,0.063,240.34,240.33,265.66785749]
[1738262194508,0.063,240.34,240.33,265.15221264]
[1738262196689,0.063,240.34,240.33,251.74036411]
[1738262197094,0.063,240.34,240.33,239.3]
[1738262197289,0.063,240.34,240.33,251.74036411]
[1738262198198,0.063,240.34,240.33,265.15221264]
[1738262199397,0.063,240.34,240.33,277.84355675]
[1738262199591,0.5,240.41,240.38,1.6348]
[1738262199793,0.5,240.41,240.4,32.44036411]
[1738262200804,0.5,240.41,240.4,265.15221264]
[1738262201001,23.73862612,240.51,240.41,13.41184853]
[1738262201202,24.51825105,240.51,240.44,12.44036411]
[1738262202215,20.0,240.48,240.42,0.51516885]
[1738262202427,4.158,240.5,240.36,12.44036411]
[1738262202428,12.44036411,240.44,240.36,12.44036411]
[1738262202600,12.44036411,240.44,240.37,0.51570247]
[1738262203103,12.56585411,240.46,240.37,0.51570247]
[1738262203304,0.77987682,240.45,240.37,0.51570247]
[1738262203915,4.93867682,240.45,240.37,0.51570247]
[1738262204120,0.12549,240.41,240.36,82.3]
[1738262204431,0.78002995,240.41,240.36,82.3]
[1738262204636,14.22039406,240.44,240.37,0.51594868]
[1738262204921,4.28409,240.47,240.4,12.44036411]
[1738262205111,4.28409,240.47,240.42,12.44036411]
[1738262205313,0.77992771,240.5,240.44,12.44036411]
[1738262205625,23.73862612,240.51,240.48,12.44036411]
[1738262206120,23.73862612,240.51,240.46,12.95554306]
[1738262206510,23.73862612,240.51,240.48,12.44036411]
[1738262207126,5.1573,240.54,240.48,12.44036411]
[1738262207425,5.1573,240.54,240.49,0.51507715]
[1738262207925,5.1573,240.54,240.48,12.95538397]
[1738262208512,4.1571,240.56,240.48,149.95538397]
[1738262208728,4.1571,240.56,240.5,12.44036411]
[1738262208927,4.1571,240.56,240.51,0.51490629]
[1738262209218,16.59706411,240.58,240.51,0.51490629]
[1738262209831,0.77947721,240.57,240.5,12.44036411]
[1738262210209,12.44036411,240.54,240.48,137.0]
[1738262210407,12.44036411,240.56,240.49,0.51513934]
[1738262210605,16.59706411,240.58,240.49,12.95550345]
[1738262211103,0.77946224,240.57,240.49,12.95550345]
[1738262211811,13.21984667,240.58,240.49,12.95550345]
[1738262212334,1.5981,240.59,240.51,12.44036411]
[1738262212506,0.063,240.59,240.53,12.44036411]
[1738262212698,0.063,240.59,240.53,231.74036411]
[1738262212910,0.063,240.59,240.57,12.44036411]
[1738262213217,0.063,240.59,240.58,0.51453602]
[1738262213423,0.063,240.59,240.58,219.81453602]
[1738262213637,0.063,240.59,240.58,219.3]
[1738262213842,0.063,240.59,240.58,82.3]
[1738262214134,0.063,240.59,240.58,82.81427098]
[1738262215427,0.063,240.59,240.58,219.81427098]
[1738262215738,0.063,240.59,240.58,219.3]
[1738262216715,0.063,240.59,240.58,232.71184853]
[1738262217527,0.063,240.59,240.58,219.3]
[1738262220334,0.063,240.59,240.58,82.3]
[1738262220546,4.2194,240.59,240.58,82.3]
[1738262220741,4.2194,240.59,240.51,231.74036411]
[1738262221051,0.063,240.59,240.53,12.44036411]
[1738262221209,0.063,240.59,240.54,0.51460675]
[1738262223156,4.99878479,240.59,240.53,12.44036411]
[1738262223315,12.44036411,240.58,240.53,82.3]
[1738262223648,13.21986256,240.58,240.53,82.3]
[1738262224949,4.1567,240.57,240.53,82.3]
[1738262228632,4.1566,240.58,240.53,82.3]
[1738262230061,16.59696411,240.58,240.53,82.3]
[1738262230366,0.77948378,240.57,240.53,82.3]
[1738262230949,4.99902975,240.59,240.53,94.74036411]
[1738262231253,13.41184853,240.58,240.53,82.3]
[1738262231447,0.77952649,240.57,240.53,82.3]
[1738262231828,4.93622649,240.57,240.53,82.3]
[1738262233058,0.063,240.59,240.53,94.74036411]
[1738262233059,0.84252148,240.59,240.53,94.74036411]
[1738262233860,4.99892148,240.59,240.53,94.74036411]
[1738262234571,4.99892148,240.59,240.58,12.44036411]
[1738262234572,0.063,240.59,240.58,12.44036411]
[1738262234770,0.063,240.59,240.58,231.74036411]
[1738262243044,0.063,240.59,240.58,244.18072822]
[1738262243249,0.063,240.59,240.58,231.74036411]
[1738262243556,0.063,240.59,240.58,244.18072822]
[1738262244148,0.063,240.59,240.58,231.74036411]
[1738262248482,0.063,240.63,240.61,20.0]
[1738262248772,0.063,240.63,240.62,12.9542218]
[1738262249481,0.063,240.63,240.62,232.2542218]
[1738262249679,0.063,240.63,240.62,231.74036411]
[1738262254477,0.063,240.63,240.62,82.3]
[1738262254847,0.063,240.63,240.62,82.81426577]
[1738262255072,0.063,240.63,240.62,95.25462988]
[1738262255271,0.063,240.63,240.62,94.74036411]
[1738262255878,0.063,240.63,240.62,231.74036411]
[1738262256083,0.063,240.72,240.65,20.0]
[1738262256287,0.063,240.72,240.7,12.44036411]
[1738262256483,0.063,240.72,240.71,12.95368994]
[1738262256788,0.063,240.72,240.71,0.51332583]
[1738262258282,0.063,240.72,240.71,232.25368994]
[1738262258587,0.063,240.72,240.71,219.3]
[1738262259778,0.063,240.72,240.71,231.74036411]
[1738262261571,0.063,240.76,240.74,20.0]
[1738262261768,0.063,240.76,240.75,12.95323231]
[1738262261983,0.063,240.76,240.75,232.25323231]
[1738262262196,0.063,240.83,240.78,20.0]
[1738262262503,0.063,240.83,240.82,12.44036411]
[1738262265894,0.063,240.83,240.79,0.51272829]
[1738262265895,0.063,240.83,240.8,12.44036411]
[1738262266387,0.063,240.83,240.79,0.51272829]
[1738262266784,0.063,240.83,240.78,231.74036411]
[1738262267300,12.44036411,240.82,240.74,12.44036411]
[1738262267476,0.12549,240.82,240.76,12.44036411]
[1738262267879,0.063,240.83,240.77,0.51322651]
[1738262268093,0.063,240.83,240.78,12.44036411]
[1738262268293,4.2153,240.83,240.78,12.44036411]
[1738262269506,0.063,240.83,240.78,12.44036411]
[1738262269710,0.063,240.83,240.8,12.44036411]
[1738262269887,0.063,240.83,240.81,0.51295306]
[1738262270288,0.063,240.83,240.8,12.44036411]
[1738262270795,0.063,240.83,240.78,231.74036411]
[1738262270991,4.2153,240.83,240.78,219.3]
[1738262271601,0.063,240.83,240.78,231.74036411]
[1738262271817,0.063,240.83,240.8,12.44036411]
[1738262272112,0.063,240.83,240.81,0.5129612]
[1738262272686,0.063,240.83,240.82,12.44036411]
[1738262273413,0.063,240.83,240.82,149.44036411]
[1738262273714,0.063,240.83,240.82,231.74036411]
[1738262275700,0.063,240.83,240.82,244.18072822]
[1738262276804,0.063,240.83,240.82,231.74036411]
[1738262283629,0.063,240.83,240.8,12.44036411]
[1738262284444,0.063,240.83,240.82,12.44036411]
[1738262285117,0.063,240.83,240.82,149.44036411]
[1738262285455,0.063,240.83,240.82,161.88072822]
[1738262285746,0.063,240.88,240.85,20.0]
[1738262285918,0.063,240.88,240.87,12.44036411]
[1738262286849,0.063,240.88,240.87,149.44036411]
[1738262292955,0.063,240.88,240.87,231.74036411]
[1738262294349,0.063,240.89,240.87,231.74036411]
[1738262294549,0.063,240.89,240.88,13.92382257]
[1738262295770,0.063,240.91,240.9,20.0]
[1738262295987,0.063,240.91,240.9,232.25215693]
[1738262296163,1.6198,241.05,240.9,245.15221264]
[1738262296364,1.6198,241.05,241.0,12.44036411]
[1738262296571,1.6198,241.05,241.02,12.44036411]
[1738262296762,0.03,241.08,241.04,12.44036411]
[1738262297258,0.03,241.08,241.04,12.95174087]
[1738262297783,0.03,241.08,241.04,149.95174087]
[1738262297959,0.03,241.08,241.04,149.44036411]
[1738262299156,0.03,241.08,241.05,0.51132608]
[1738262299487,0.03,241.08,241.05,137.51132608]
[1738262299656,0.03,241.08,241.05,137.0]
[1738262299856,0.03,241.08,241.06,0.51130381]
[1738262301088,0.03,241.08,241.06,12.95166792]
[1738262306007,0.03,241.08,241.02,219.3]
[1738262306008,0.03,241.08,241.04,12.44036411]
[1738262306209,0.03,241.08,241.05,0.51136061]
[1738262307981,0.03,241.08,241.05,0.51142589]
[1738262308185,0.03,241.08,241.02,94.74036411]
[1738262309206,0.03,241.08,241.03,0.51155837]
[1738262309702,4.178,241.08,241.03,0.51155837]
[1738262310090,13.34366819,241.07,241.02,82.3]
[1738262310291,12.44036411,241.05,241.02,82.3]
[1738262311783,13.34366819,241.07,241.02,82.3]
[1738262312002,12.44036411,241.05,240.98,12.44036411]
[1738262312190,12.44036411,241.05,240.98,149.95217028]
[1738262312503,12.44036411,241.05,240.98,149.44036411]
[1738262312806,0.12549,241.02,240.96,12.44036411]
[1738262313012,0.12549,241.02,240.91,219.363]
[1738262313013,12.44036411,240.98,240.92,0.51201787]
[1738262315136,0.12549,240.98,240.92,12.95238198]
[1738262317129,0.12549,240.98,240.92,0.51201787]
[1738262317828,0.7781571,240.99,240.92,0.51201787]
[1738262318004,1.6122,241.02,240.96,12.44036411]
[1738262318427,0.12549,241.01,240.96,12.44036411]
[1738262318628,1.6122,241.02,240.98,12.44036411]
[1738262319314,1.6122,241.02,240.99,0.51181771]
[1738262320237,0.12549,241.04,240.99,0.51181771]
[1738262321042,0.12549,241.04,240.98,12.95211252]
[1738262325160,0.90344208,241.03,240.97,137.0]
[1738262325454,0.12549,241.01,240.97,137.0]
[1738262325757,0.12549,240.99,240.92,12.44036411]
[1738262325946,0.90363877,240.99,240.92,12.95258065]
[1738262327048,0.12549,240.99,240.92,12.95258065]
[1738262328323,0.12549,240.99,240.91,219.363]
[1738262328324,12.44036411,240.96,240.91,219.363]
[1738262328726,1.77089,240.97,240.91,219.363]
[1738262329057,1.6454,240.97,240.92,0.51227138]
[1738262329240,1.6454,240.97,240.92,12.95263549]
[1738262329852,1.6454,240.97,240.94,12.44036411]
[1738262330034,0.12549,241.0,240.96,12.44036411]
[1738262330554,1.6245,241.03,240.98,12.44036411]
[1738262330743,1.6245,241.03,240.99,0.51180918]
[1738262330942,1.6245,241.03,240.98,12.44036411]
[1738262331538,1.6245,241.03,240.99,0.51182574]
[1738262334249,1.6245,241.03,241.0,12.44036411]
[1738262334455,0.03,241.05,241.01,0.51169665]
[1738262335772,0.12549,241.04,240.99,137.0]
[1738262335931,0.12549,241.04,241.0,0.51176338]
[1738262336744,0.03,241.05,241.0,0.51176338]
[1738262337233,0.03,241.05,241.0,12.95212749]
[1738262337868,0.03,241.05,241.02,12.44036411]
[1738262338175,0.03,241.05,241.04,12.44036411]
[1738262339359,0.03,241.05,241.04,14.91145536]
[1738262339533,0.03,241.05,241.04,15.42274319]
[1738262340572,0.03,241.05,241.04,2.47109125]
[1738262340773,0.15549,241.05,241.04,2.47109125]
[1738262341274,0.15549,241.05,240.97,0.51180433]
[1738262341454,0.12549,241.03,240.97,0.51180433]
[1738262342580,0.12549,241.04,240.98,12.44036411]
[1738262342966,0.03,241.05,240.99,0.51183919]
[1738262343359,0.80792792,241.05,240.99,0.51183919]
[1738262343557,0.12549,241.04,240.98,14.91364094]
[1738262343979,0.12549,241.04,240.98,2.47327683]
[1738262344184,12.56585411,241.04,240.98,2.47327683]
[1738262344356,14.19185411,241.04,240.98,2.47327683]
[1738262344562,12.56585411,241.0,240.99,2.47327683]
[1738262344874,0.77797898,241.03,240.99,2.47327683]
[1738262345068,0.03,241.05,241.02,12.44036411]
[1738262345472,0.03,241.05,241.04,12.44036411]
[1738262345699,12.47036411,241.05,240.99,2.47327683]
[1738262345996,12.44036411,241.02,240.99,2.47327683]
[1738262346177,12.44036411,241.02,240.94,12.95204374]
[1738262346894,4.1488,241.03,240.94,12.95204374]
[1738262347073,0.7780401,241.02,240.94,12.95204374]
[1738262347497,0.7780401,241.02,240.95,2.47450157]
[1738262348095,0.77804034,241.03,240.96,0.51199967]
[1738262348396,0.77804034,241.03,240.96,12.95236378]
[1738262348891,0.77804034,241.03,240.97,2.47450157]
[1738262349103,0.03,241.05,240.99,12.44036411]
[1738262350970,0.03,241.05,240.97,14.91486568]
[1738262351267,0.03,241.05,241.0,2.47450157]
[1738262352900,0.03,241.05,241.01,2.47450157]
[1738262353700,12.44036411,241.04,241.01,2.47450157]
[1738262353905,0.77800922,241.03,241.01,2.47450157]
[1738262354387,4.92680922,241.03,241.02,2.47450157]
[1738262355405,0.77800922,241.03,241.02,2.47450157]
[1738262355710,4.95650585,241.05,241.02,2.47450157]
[1738262356295,4.95650585,241.05,240.98,2.47450157]
[1738262357340,4.95650585,241.05,240.99,2.47450157]
[1738262358337,0.80800585,241.05,240.99,2.47450157]
[1738262358508,0.03,241.05,241.01,12.44036411]
[1738262358703,0.03,241.05,241.03,12.44036411]
[1738262360856,0.03,241.05,241.04,0.51155016]
[1738262361517,0.03,241.05,241.04,2.98605173]
[1738262370039,0.03,241.13,241.06,20.0]
[1738262370237,0.03,241.13,241.07,12.95126266]
[1738262372126,0.03,241.13,241.07,15.42576423]
[1738262372530,0.03,241.13,241.07,10.91525256]
[1738262373952,7.92985244,241.12,241.07,2.47450157]
[1738262374639,0.03,241.13,241.07,30.40435401]
[1738262374844,0.03,241.13,241.07,38.84498584]
[1738262375058,0.03,241.13,241.07,64.27214316]
[1738262375257,0.03,241.13,241.07,32.5527334]
[1738262375661,0.03,241.13,241.07,30.07823183]
[1738262376246,0.03,241.13,241.07,61.79764159]